[Event "*** SCC Grand Prix: Titled Tuesday Blitz"]
[Site "Chess.com"]
[Date "2020.08.25"]
[Round "2"]
[White "nocnypako"]
[Black "The_Machine04"]
[Result "1-0"]
[WhiteElo "2601"]
[BlackElo "2286"]
[TimeControl "180+1"]
[EndTime "10:19:11 PDT"]
[Termination "nocnypako won on time"]

1. d4 {[%clk 0:03:00.9]} 1... d6 {[%clk 0:02:55.1]} 2. e4 {[%clk 0:02:56.6]}
2... Nf6 {[%clk 0:02:54.9]} 3. Nc3 {[%clk 0:02:56]} 3... e5 {[%clk 0:02:54.5]}
4. Nf3 {[%clk 0:02:54.8]} 4... Nbd7 {[%clk 0:02:52.9]} 5. h3 {[%clk 0:02:53.1]}
5... c6 {[%clk 0:02:47.6]} 6. Bc4 {[%clk 0:02:46.1]} 6... Be7 {[%clk 0:02:44.9]}
7. dxe5 {[%clk 0:02:43.7]} 7... dxe5 {[%clk 0:02:41.8]} 8. Be3 {[%clk
0:02:43.1]} 8... O-O {[%clk 0:02:39.2]} 9. a4 {[%clk 0:02:41.6]} 9... a5 {[%clk
0:02:31.4]} 10. O-O {[%clk 0:02:39.9]} 10... Qc7 {[%clk 0:02:31.2]} 11. Qe2
{[%clk 0:02:36.9]} 11... Rd8 {[%clk 0:02:28.5]} 12. Nd2 {[%clk 0:02:34.1]} 12...
Nc5 {[%clk 0:02:18.5]} 13. f3 {[%clk 0:02:27.9]} 13... Be6 {[%clk 0:02:16.6]}
14. Rfd1 {[%clk 0:02:25.1]} 14... Rd7 {[%clk 0:02:11.9]} 15. Bxc5 {[%clk
0:02:24.6]} 15... Bxc5+ {[%clk 0:02:11.3]} 16. Kh2 {[%clk 0:02:24.7]} 16... Bxc4
{[%clk 0:01:55.5]} 17. Qxc4 {[%clk 0:02:24.9]} 17... Be3 {[%clk 0:01:37.5]} 18.
Nb3 {[%clk 0:02:21.4]} 18... Nh5 {[%clk 0:01:28.2]} 19. Rxd7 {[%clk 0:02:15.2]}
19... Qxd7 {[%clk 0:01:29.1]} 20. Rd1 {[%clk 0:02:14.8]} 20... Bf4+ {[%clk
0:01:23.8]} 21. Kg1 {[%clk 0:02:12.8]} 21... Qe7 {[%clk 0:01:11.3]} 22. Ne2
{[%clk 0:02:07.5]} 22... Be3+ {[%clk 0:01:00.5]} 23. Kh2 {[%clk 0:01:58.2]}
23... Rd8 {[%clk 0:00:51.7]} 24. Rxd8+ {[%clk 0:01:55.6]} 24... Qxd8 {[%clk
0:00:52.6]} 25. Qc3 {[%clk 0:01:39.6]} 25... Bf4+ {[%clk 0:00:19]} 26. Nxf4
{[%clk 0:01:36.4]} 26... exf4 {[%clk 0:00:19.9]} 27. Qxa5 {[%clk 0:01:32.4]}
27... Qxa5 {[%clk 0:00:15]} 28. Nxa5 {[%clk 0:01:33.3]} 28... Nf6 {[%clk
0:00:14.3]} 29. Nxb7 {[%clk 0:01:28.6]} 29... Nd7 {[%clk 0:00:15.2]} 30. Nd8
{[%clk 0:01:22.9]} 30... c5 {[%clk 0:00:12.3]} 31. a5 {[%clk 0:01:22.9]} 31...
Nb8 {[%clk 0:00:12]} 32. Nb7 {[%clk 0:01:21]} 32... Na6 {[%clk 0:00:11.8]} 33.
g3 {[%clk 0:00:50.4]} 33... fxg3+ {[%clk 0:00:07]} 34. Kxg3 {[%clk 0:00:51.3]}
34... Kf8 {[%clk 0:00:07.8]} 35. Kf4 {[%clk 0:00:51.1]} 35... Ke7 {[%clk
0:00:07.4]} 36. Ke5 {[%clk 0:00:51.3]} 36... Kd7 {[%clk 0:00:07.5]} 37. Kd5
{[%clk 0:00:50.9]} 37... Nb4+ {[%clk 0:00:05.8]} 38. Kxc5 {[%clk 0:00:50.7]}
38... Nxc2 {[%clk 0:00:06.1]} 39. a6 {[%clk 0:00:49.6]} 39... Kc7 {[%clk
0:00:06.2]} 40. Nd6 {[%clk 0:00:50.1]} 40... Na1 {[%clk 0:00:03.5]} 41. a7
{[%clk 0:00:49.2]} 41... Nb3+ {[%clk 0:00:03.6]} 42. Kb4 {[%clk 0:00:49.5]}
42... Nd4 {[%clk 0:00:02.8]} 43. a8=Q {[%clk 0:00:47.9]} 43... Kxd6 {[%clk
0:00:03.7]} 44. Qd5+ {[%clk 0:00:47.3]} 1-0

[Event "*** SCC Grand Prix: Titled Tuesday Blitz"]
[Site "Chess.com"]
[Date "2020.08.25"]
[Round "2"]
[White "emperor87"]
[Black "AJSC02"]
[Result "1-0"]
[WhiteElo "2664"]
[BlackElo "2298"]
[TimeControl "180+1"]
[EndTime "10:19:14 PDT"]
[Termination "emperor87 won on time"]

1. e4 {[%clk 0:03:00.9]} 1... c5 {[%clk 0:03:00]} 2. Nf3 {[%clk 0:02:58.7]} 2...
Nc6 {[%clk 0:03:00.1]} 3. d4 {[%clk 0:02:56.4]} 3... cxd4 {[%clk 0:03:01]} 4.
Nxd4 {[%clk 0:02:56.1]} 4... Nf6 {[%clk 0:03:01.9]} 5. Nc3 {[%clk 0:02:55.7]}
5... e5 {[%clk 0:03:01.7]} 6. Ndb5 {[%clk 0:02:53]} 6... d6 {[%clk 0:03:01.9]}
7. Nd5 {[%clk 0:02:50]} 7... Nxd5 {[%clk 0:02:59.4]} 8. exd5 {[%clk 0:02:50.3]}
8... Nb8 {[%clk 0:03:00.1]} 9. c4 {[%clk 0:02:49.7]} 9... Be7 {[%clk 0:02:59.9]}
10. Be2 {[%clk 0:02:49.3]} 10... O-O {[%clk 0:02:59.7]} 11. O-O {[%clk
0:02:49.3]} 11... a6 {[%clk 0:02:59.6]} 12. Nc3 {[%clk 0:02:49]} 12... f5 {[%clk
0:03:00]} 13. f3 {[%clk 0:02:48.6]} 13... Nd7 {[%clk 0:03:00.2]} 14. Be3 {[%clk
0:02:48.3]} 14... Bg5 {[%clk 0:02:55.8]} 15. Bf2 {[%clk 0:02:48.4]} 15... Qf6
{[%clk 0:02:38.7]} 16. b4 {[%clk 0:02:46.4]} 16... b6 {[%clk 0:02:27.2]} 17. a4
{[%clk 0:02:42.7]} 17... a5 {[%clk 0:02:22.8]} 18. Qb3 {[%clk 0:02:29.9]} 18...
Qh6 {[%clk 0:01:41]} 19. Nb5 {[%clk 0:02:27.3]} 19... axb4 {[%clk 0:01:34.6]}
20. Qxb4 {[%clk 0:02:26]} 20... Nc5 {[%clk 0:01:30.7]} 21. a5 {[%clk 0:02:22.3]}
21... bxa5 {[%clk 0:01:28.3]} 22. Qa3 {[%clk 0:02:17.2]} 22... Nd7 {[%clk
0:01:10.5]} 23. Qxd6 {[%clk 0:02:14.5]} 23... Rf6 {[%clk 0:01:01.7]} 24. Qa3
{[%clk 0:02:14.4]} 24... e4 {[%clk 0:00:46.6]} 25. fxe4 {[%clk 0:02:11.8]} 25...
fxe4 {[%clk 0:00:46]} 26. Bd4 {[%clk 0:02:11.5]} 26... Rg6 {[%clk 0:00:32]} 27.
Bg4 {[%clk 0:02:02.2]} 27... Bf4 {[%clk 0:00:30.2]} 28. Bh3 {[%clk 0:02:00]}
28... Nf6 {[%clk 0:00:17.2]} 29. Kh1 {[%clk 0:01:53.1]} 29... Bxh3 {[%clk
0:00:16.7]} 30. Qxh3 {[%clk 0:01:52.1]} 30... Qg5 {[%clk 0:00:14.2]} 31. Bg1
{[%clk 0:01:26.4]} 31... Rh6 {[%clk 0:00:13.9]} 32. Qe6+ {[%clk 0:01:26.5]}
32... Kh8 {[%clk 0:00:13.8]} 33. Ra2 {[%clk 0:01:21.8]} 33... Bxh2 {[%clk
0:00:12.8]} 34. Bxh2 {[%clk 0:01:19.6]} 34... Qg3 {[%clk 0:00:12.8]} 35. Qh3
{[%clk 0:01:13.7]} 35... Rxh3 {[%clk 0:00:12.6]} 36. gxh3 {[%clk 0:01:13.8]}
36... Qb3 {[%clk 0:00:11.7]} 37. Raa1 {[%clk 0:01:05]} 37... Qxc4 {[%clk
0:00:11.7]} 38. Nc7 {[%clk 0:01:05.2]} 38... Qd3 {[%clk 0:00:04.7]} 39. Rad1
{[%clk 0:01:04.1]} 39... Qxh3 {[%clk 0:00:04.4]} 40. Kg1 {[%clk 0:00:51.8]}
40... Rf8 {[%clk 0:00:03.3]} 41. Rd2 {[%clk 0:00:50.9]} 41... e3 {[%clk
0:00:03.2]} 42. Rg2 {[%clk 0:00:50.7]} 42... Qe6 {[%clk 0:00:02]} 43. Nxe6
{[%clk 0:00:50.2]} 1-0

[Event "*** SCC Grand Prix: Titled Tuesday Blitz"]
[Site "Chess.com"]
[Date "2020.08.25"]
[Round "2"]
[White "icychess54"]
[Black "SlavenPastar"]
[Result "1-0"]
[WhiteElo "2248"]
[BlackElo "2436"]
[TimeControl "180+1"]
[EndTime "10:19:14 PDT"]
[Termination "icychess54 won by checkmate"]

1. c4 {[%clk 0:03:00.9]} 1... e5 {[%clk 0:02:57.5]} 2. Nc3 {[%clk 0:03:00.1]}
2... Nc6 {[%clk 0:02:57.8]} 3. Nf3 {[%clk 0:03:00.5]} 3... g6 {[%clk 0:02:57.6]}
4. e3 {[%clk 0:03:00.6]} 4... Bg7 {[%clk 0:02:56.7]} 5. Be2 {[%clk 0:03:01]}
5... f5 {[%clk 0:02:56.4]} 6. O-O {[%clk 0:03:01]} 6... Nf6 {[%clk 0:02:51.6]}
7. d4 {[%clk 0:03:00.8]} 7... e4 {[%clk 0:02:52.1]} 8. Nd2 {[%clk 0:02:58.2]}
8... O-O {[%clk 0:02:51.2]} 9. a3 {[%clk 0:02:56.9]} 9... d6 {[%clk 0:02:49]}
10. b4 {[%clk 0:02:56.4]} 10... Ne7 {[%clk 0:02:47.9]} 11. b5 {[%clk 0:02:54.4]}
11... Be6 {[%clk 0:02:47.9]} 12. Bb2 {[%clk 0:02:53.2]} 12... Qd7 {[%clk
0:02:43.8]} 13. a4 {[%clk 0:02:42.9]} 13... d5 {[%clk 0:02:39.9]} 14. cxd5
{[%clk 0:02:32.3]} 14... Nexd5 {[%clk 0:02:38.8]} 15. Nc4 {[%clk 0:02:24.6]}
15... Nxc3 {[%clk 0:02:37.7]} 16. Bxc3 {[%clk 0:02:25.5]} 16... Nd5 {[%clk
0:02:38]} 17. Bb2 {[%clk 0:02:18.8]} 17... f4 {[%clk 0:02:34.9]} 18. Ne5 {[%clk
0:02:03.1]} 18... Bxe5 {[%clk 0:02:32]} 19. dxe5 {[%clk 0:02:04]} 19... fxe3
{[%clk 0:02:22.5]} 20. fxe3 {[%clk 0:01:50.9]} 20... Nxe3 {[%clk 0:02:12.9]} 21.
Qxd7 {[%clk 0:01:50.7]} 21... Bxd7 {[%clk 0:01:59.7]} 22. Rfc1 {[%clk
0:01:49.2]} 22... c6 {[%clk 0:01:52.4]} 23. a5 {[%clk 0:01:15.8]} 23... cxb5
{[%clk 0:01:33]} 24. Rc7 {[%clk 0:01:15.1]} 24... Bc6 {[%clk 0:01:33.3]} 25. e6
{[%clk 0:01:09.6]} 25... Rfd8 {[%clk 0:00:49]} 26. Rg7+ {[%clk 0:00:59.3]} 26...
Kf8 {[%clk 0:00:49.2]} 27. e7+ {[%clk 0:00:56.7]} 27... Ke8 {[%clk 0:00:47.6]}
28. exd8=Q+ {[%clk 0:00:54.9]} 28... Rxd8 {[%clk 0:00:48.2]} 29. Rg8+ {[%clk
0:00:50.5]} 29... Kd7 {[%clk 0:00:45.8]} 30. Rxd8+ {[%clk 0:00:51.4]} 30... Kxd8
{[%clk 0:00:46.7]} 31. Bd4 {[%clk 0:00:51.5]} 31... Nc2 {[%clk 0:00:43.1]} 32.
Rc1 {[%clk 0:00:46.9]} 32... Nxd4 {[%clk 0:00:38.3]} 33. Rd1 {[%clk 0:00:46.9]}
33... Kc7 {[%clk 0:00:30.8]} 34. Rxd4 {[%clk 0:00:46.7]} 34... b6 {[%clk
0:00:29.1]} 35. a6 {[%clk 0:00:42.2]} 35... Ba8 {[%clk 0:00:20.7]} 36. Bxb5
{[%clk 0:00:41.3]} 36... e3 {[%clk 0:00:18]} 37. Rd7+ {[%clk 0:00:38.8]} 37...
Kb8 {[%clk 0:00:17]} 38. Rxh7 {[%clk 0:00:36.9]} 38... Be4 {[%clk 0:00:16.6]}
39. Re7 {[%clk 0:00:35.2]} 39... e2 {[%clk 0:00:16.1]} 40. Rxe4 {[%clk
0:00:34.7]} 40... g5 {[%clk 0:00:17]} 41. Rxe2 {[%clk 0:00:33.6]} 41... g4
{[%clk 0:00:17.9]} 42. Re7 {[%clk 0:00:32.3]} 42... g3 {[%clk 0:00:18.8]} 43.
Rb7+ {[%clk 0:00:32.3]} 43... Ka8 {[%clk 0:00:18]} 44. Bc6 {[%clk 0:00:30.3]}
44... gxh2+ {[%clk 0:00:17]} 45. Kxh2 {[%clk 0:00:30.2]} 45... b5 {[%clk
0:00:15.8]} 46. Rxb5# {[%clk 0:00:30.6]} 1-0

[Event "*** SCC Grand Prix: Titled Tuesday Blitz"]
[Site "Chess.com"]
[Date "2020.08.25"]
[Round "2"]
[White "GAusal"]
[Black "mamey78"]
[Result "0-1"]
[WhiteElo "2149"]
[BlackElo "2412"]
[TimeControl "180+1"]
[EndTime "10:19:14 PDT"]
[Termination "mamey78 won on time"]

1. e4 {[%clk 0:03:00.9]} 1... e5 {[%clk 0:02:58.5]} 2. f4 {[%clk 0:03:00.4]}
2... Qh4+ {[%clk 0:02:55.5]} 3. g3 {[%clk 0:02:58.5]} 3... Qe7 {[%clk
0:02:56.4]} 4. fxe5 {[%clk 0:02:46.8]} 4... d6 {[%clk 0:02:55.8]} 5. Bg2 {[%clk
0:02:43.5]} 5... dxe5 {[%clk 0:02:54.3]} 6. Nf3 {[%clk 0:02:39.5]} 6... Nf6
{[%clk 0:02:43.9]} 7. Nc3 {[%clk 0:02:35.9]} 7... c6 {[%clk 0:02:40.9]} 8. O-O
{[%clk 0:02:31.8]} 8... Qc7 {[%clk 0:02:39.3]} 9. d4 {[%clk 0:02:27.9]} 9...
exd4 {[%clk 0:02:35.3]} 10. Bf4 {[%clk 0:02:15.8]} 10... Qb6 {[%clk 0:02:24.3]}
11. Qxd4 {[%clk 0:02:13.4]} 11... Bc5 {[%clk 0:02:22.3]} 12. Be3 {[%clk
0:01:51.2]} 12... Bxd4 {[%clk 0:02:21.4]} 13. Bxd4 {[%clk 0:01:50.9]} 13... c5
{[%clk 0:02:09.6]} 14. Bxf6 {[%clk 0:01:41.6]} 14... gxf6 {[%clk 0:02:08]} 15.
Nd5 {[%clk 0:01:37.6]} 15... Qc6 {[%clk 0:01:33.9]} 16. c4 {[%clk 0:01:32.5]}
16... Nd7 {[%clk 0:01:33.5]} 17. e5 {[%clk 0:01:28.2]} 17... Kf8 {[%clk
0:01:27]} 18. exf6 {[%clk 0:01:25.1]} 18... b6 {[%clk 0:01:17.4]} 19. Rae1
{[%clk 0:01:17.7]} 19... Bb7 {[%clk 0:01:15.9]} 20. Re7 {[%clk 0:01:13.2]} 20...
Nxf6 {[%clk 0:01:09.7]} 21. Ng5 {[%clk 0:01:06.6]} 21... Qxd5 {[%clk 0:00:37]}
22. cxd5 {[%clk 0:01:01.5]} 22... Kxe7 {[%clk 0:00:36.1]} 23. d6+ {[%clk
0:00:58.3]} 23... Kxd6 {[%clk 0:00:35]} 24. Bxb7 {[%clk 0:00:52.4]} 24... Rab8
{[%clk 0:00:33.3]} 25. Rxf6+ {[%clk 0:00:46.4]} 25... Ke5 {[%clk 0:00:31.2]} 26.
Rxf7 {[%clk 0:00:42.3]} 26... Rhf8 {[%clk 0:00:31.3]} 27. Rxf8 {[%clk
0:00:36.4]} 27... Rxf8 {[%clk 0:00:32.2]} 28. Bc6 {[%clk 0:00:24.5]} 28... Rd8
{[%clk 0:00:31.9]} 29. Nxh7 {[%clk 0:00:21.5]} 29... Rd2 {[%clk 0:00:27.8]} 30.
h4 {[%clk 0:00:13.1]} 30... Rxb2 {[%clk 0:00:27.9]} 31. Ng5 {[%clk 0:00:11.5]}
31... c4 {[%clk 0:00:27.2]} 32. Nf3+ {[%clk 0:00:10.3]} 32... Kd6 {[%clk
0:00:26.8]} 33. Be8 {[%clk 0:00:05]} 33... c3 {[%clk 0:00:26.3]} 0-1

[Event "*** SCC Grand Prix: Titled Tuesday Blitz"]
[Site "Chess.com"]
[Date "2020.08.25"]
[Round "2"]
[White "grandcoach"]
[Black "Kaua18"]
[Result "0-1"]
[WhiteElo "2105"]
[BlackElo "2399"]
[TimeControl "180+1"]
[EndTime "10:19:14 PDT"]
[Termination "Kaua18 won on time"]

1. e4 {[%clk 0:03:00.9]} 1... c5 {[%clk 0:02:59.3]} 2. b4 {[%clk 0:02:59.9]}
2... cxb4 {[%clk 0:02:59.2]} 3. a3 {[%clk 0:02:58.7]} 3... Nf6 {[%clk
0:02:49.4]} 4. e5 {[%clk 0:02:57.9]} 4... Nd5 {[%clk 0:02:49.4]} 5. axb4 {[%clk
0:02:58.3]} 5... Nxb4 {[%clk 0:02:39.7]} 6. c3 {[%clk 0:02:57.3]} 6... N4a6
{[%clk 0:02:36.2]} 7. d4 {[%clk 0:02:56.6]} 7... d6 {[%clk 0:02:33.3]} 8. f4
{[%clk 0:02:55.4]} 8... g6 {[%clk 0:02:30.4]} 9. Nf3 {[%clk 0:02:49.8]} 9... Bg7
{[%clk 0:02:29.5]} 10. Bc4 {[%clk 0:02:40.1]} 10... O-O {[%clk 0:02:29.5]} 11.
O-O {[%clk 0:02:38.6]} 11... d5 {[%clk 0:02:25.4]} 12. Bd3 {[%clk 0:02:37.2]}
12... Nc6 {[%clk 0:02:25.3]} 13. f5 {[%clk 0:02:14.5]} 13... Bxf5 {[%clk
0:02:20.7]} 14. Bxf5 {[%clk 0:02:13.2]} 14... gxf5 {[%clk 0:02:21.6]} 15. Qe1
{[%clk 0:02:05.7]} 15... e6 {[%clk 0:02:16.1]} 16. Bg5 {[%clk 0:02:05.2]} 16...
Ne7 {[%clk 0:01:59]} 17. Qh4 {[%clk 0:02:02.9]} 17... Re8 {[%clk 0:01:56.8]} 18.
Na3 {[%clk 0:01:22.8]} 18... Qd7 {[%clk 0:01:50]} 19. Bf6 {[%clk 0:01:19.9]}
19... Ng6 {[%clk 0:01:48.2]} 20. Qh5 {[%clk 0:01:18]} 20... h6 {[%clk
0:01:28.5]} 21. Nh4 {[%clk 0:01:07.6]} 21... Kh7 {[%clk 0:01:26.5]} 22. Rf3
{[%clk 0:01:03.7]} 22... Bxf6 {[%clk 0:01:12.5]} 23. exf6 {[%clk 0:01:02.7]}
23... Qd8 {[%clk 0:01:12.5]} 24. Raf1 {[%clk 0:00:43.7]} 24... Qxf6 {[%clk
0:01:08.3]} 25. Nxf5 {[%clk 0:00:43.5]} 25... Qg5 {[%clk 0:00:59.4]} 26. Qh3
{[%clk 0:00:32.6]} 26... exf5 {[%clk 0:00:57.6]} 27. Rxf5 {[%clk 0:00:31.4]}
27... Qe3+ {[%clk 0:00:57.7]} 28. Qxe3 {[%clk 0:00:28.8]} 28... Rxe3 {[%clk
0:00:58.6]} 29. Rxf7+ {[%clk 0:00:29.3]} 29... Kg8 {[%clk 0:00:56.5]} 30. Nb5
{[%clk 0:00:26.3]} 30... Re7 {[%clk 0:00:55.7]} 31. R7f6 {[%clk 0:00:21.7]}
31... Kg7 {[%clk 0:00:55.8]} 32. Nd6 {[%clk 0:00:20.3]} 32... Rd7 {[%clk
0:00:37.1]} 33. Re6 {[%clk 0:00:18.4]} 33... Rf8 {[%clk 0:00:35.2]} 34. Nf5+
{[%clk 0:00:15.1]} 34... Kh7 {[%clk 0:00:34.8]} 35. h4 {[%clk 0:00:11.6]} 35...
Nc7 {[%clk 0:00:31.6]} 36. Re3 {[%clk 0:00:01.2]} 36... Rdf7 {[%clk 0:00:31.3]}
0-1

[Event "*** SCC Grand Prix: Titled Tuesday Blitz"]
[Site "Chess.com"]
[Date "2020.08.25"]
[Round "2"]
[White "MikeSailer"]
[Black "KaterinaMiroshnik"]
[Result "0-1"]
[WhiteElo "2172"]
[BlackElo "2417"]
[TimeControl "180+1"]
[EndTime "10:19:17 PDT"]
[Termination "KaterinaMiroshnik won by resignation"]

1. d4 {[%clk 0:03:00.9]} 1... e6 {[%clk 0:02:59.6]} 2. Nf3 {[%clk 0:03:00.7]}
2... Nf6 {[%clk 0:02:59.9]} 3. Bf4 {[%clk 0:03:01.2]} 3... d5 {[%clk 0:03:00.3]}
4. e3 {[%clk 0:03:01.9]} 4... c5 {[%clk 0:03:00.2]} 5. c3 {[%clk 0:03:01.5]}
5... Nc6 {[%clk 0:03:00.7]} 6. Nbd2 {[%clk 0:03:01.4]} 6... Bd6 {[%clk
0:03:01.2]} 7. Bd3 {[%clk 0:03:00.6]} 7... O-O {[%clk 0:02:59.4]} 8. O-O {[%clk
0:03:01]} 8... b6 {[%clk 0:02:59.3]} 9. Ne5 {[%clk 0:03:00.5]} 9... Bb7 {[%clk
0:02:59.3]} 10. Ndf3 {[%clk 0:02:59.3]} 10... Ne7 {[%clk 0:02:59.5]} 11. h3
{[%clk 0:02:53.2]} 11... Nf5 {[%clk 0:02:58]} 12. a3 {[%clk 0:02:44.3]} 12...
Be7 {[%clk 0:02:56.6]} 13. b4 {[%clk 0:02:43.3]} 13... c4 {[%clk 0:02:56.9]} 14.
Bc2 {[%clk 0:02:36.7]} 14... Nd6 {[%clk 0:02:56.2]} 15. Nd2 {[%clk 0:02:34.2]}
15... a5 {[%clk 0:02:54]} 16. f3 {[%clk 0:02:25]} 16... axb4 {[%clk 0:02:53.9]}
17. axb4 {[%clk 0:02:24.9]} 17... Nb5 {[%clk 0:02:48.8]} 18. Rxa8 {[%clk
0:02:14.1]} 18... Qxa8 {[%clk 0:02:49.7]} 19. Nb1 {[%clk 0:02:11.8]} 19... Qa1
{[%clk 0:02:39.2]} 20. Qd2 {[%clk 0:02:01.7]} 20... Ra8 {[%clk 0:02:24.5]} 21.
Kh2 {[%clk 0:01:56]} 21... Ra2 {[%clk 0:02:20.3]} 22. Rf2 {[%clk 0:01:56.8]}
22... g6 {[%clk 0:02:12]} 23. Nxf7 {[%clk 0:01:33.4]} 23... Kxf7 {[%clk
0:02:10.1]} 24. Bxg6+ {[%clk 0:01:33.8]} 24... hxg6 {[%clk 0:02:09.6]} 25. Qxa2
{[%clk 0:01:34.3]} 25... Qxa2 {[%clk 0:02:08.4]} 26. Rxa2 {[%clk 0:01:34.6]}
26... Nh5 {[%clk 0:02:00.4]} 27. Be5 {[%clk 0:01:25.4]} 27... Ng7 {[%clk
0:02:00]} 28. Bg3 {[%clk 0:01:23.6]} 28... Nf5 {[%clk 0:01:59.7]} 29. Bf2 {[%clk
0:01:23.4]} 29... Bd6+ {[%clk 0:01:58.7]} 30. f4 {[%clk 0:01:22]} 30... Bb8
{[%clk 0:01:57.8]} 31. g4 {[%clk 0:01:19.1]} 31... Nfd6 {[%clk 0:01:58]} 32. Be1
{[%clk 0:01:19.8]} 32... Ne4 {[%clk 0:01:57.9]} 33. Kg2 {[%clk 0:01:18.3]} 33...
Kf6 {[%clk 0:01:55.3]} 34. Kf3 {[%clk 0:01:18.9]} 34... g5 {[%clk 0:01:52.4]}
35. fxg5+ {[%clk 0:01:07.5]} 35... Kxg5 {[%clk 0:01:53.3]} 36. h4+ {[%clk
0:01:08.1]} 36... Kf6 {[%clk 0:01:53.4]} 37. h5 {[%clk 0:01:02.5]} 37... Kg5
{[%clk 0:01:51.3]} 38. Rh2 {[%clk 0:00:58.6]} 38... Kh6 {[%clk 0:01:47.6]} 39.
Rg2 {[%clk 0:00:56.3]} 39... Ng5+ {[%clk 0:01:47.3]} 40. Ke2 {[%clk 0:00:54.6]}
40... Bc6 {[%clk 0:01:40.1]} 41. Bg3 {[%clk 0:00:50.5]} 41... Bxg3 {[%clk
0:01:37.1]} 42. Rxg3 {[%clk 0:00:51.1]} 42... Ne4 {[%clk 0:01:37.8]} 43. Rf3
{[%clk 0:00:48.7]} 43... Nbxc3+ {[%clk 0:01:37.1]} 44. Nxc3 {[%clk 0:00:49.4]}
44... Nxc3+ {[%clk 0:01:38]} 45. Kd2 {[%clk 0:00:50.3]} 45... Ne4+ {[%clk
0:01:37.9]} 46. Kc2 {[%clk 0:00:49.5]} 46... Ba4+ {[%clk 0:01:38]} 47. Kc1
{[%clk 0:00:46.6]} 47... c3 {[%clk 0:01:29.8]} 48. Rf7 {[%clk 0:00:34.8]} 48...
c2 {[%clk 0:01:27.4]} 49. Re7 {[%clk 0:00:29.2]} 49... Nc3 {[%clk 0:01:21.2]}
50. Rxe6+ {[%clk 0:00:26.8]} 50... Kg5 {[%clk 0:01:20.2]} 51. Re5+ {[%clk
0:00:24]} 51... Kh4 {[%clk 0:01:16.7]} 52. Kb2 {[%clk 0:00:14.7]} 52... Ne2
{[%clk 0:01:14.7]} 0-1

[Event "*** SCC Grand Prix: Titled Tuesday Blitz"]
[Site "Chess.com"]
[Date "2020.08.25"]
[Round "2"]
[White "Hikaru"]
[Black "Maksimus1998"]
[Result "1-0"]
[WhiteElo "3218"]
[BlackElo "2602"]
[TimeControl "180+1"]
[EndTime "10:19:18 PDT"]
[Termination "Hikaru won by resignation"]

1. Nf3 {[%clk 0:03:00.9]} 1... Nf6 {[%clk 0:02:58.5]} 2. b3 {[%clk 0:03:00.6]}
2... d5 {[%clk 0:02:55.8]} 3. Bb2 {[%clk 0:03:00.7]} 3... e6 {[%clk 0:02:56.1]}
4. e3 {[%clk 0:02:59.5]} 4... Be7 {[%clk 0:02:56.4]} 5. d4 {[%clk 0:02:59.3]}
5... O-O {[%clk 0:02:52.4]} 6. Bd3 {[%clk 0:02:59.6]} 6... b6 {[%clk 0:02:52.3]}
7. Nbd2 {[%clk 0:02:59.5]} 7... Bb7 {[%clk 0:02:51.7]} 8. c4 {[%clk 0:02:56.3]}
8... Nbd7 {[%clk 0:02:48.3]} 9. cxd5 {[%clk 0:02:56.4]} 9... exd5 {[%clk
0:02:47.1]} 10. O-O {[%clk 0:02:55.3]} 10... Bd6 {[%clk 0:02:47.2]} 11. Ne5
{[%clk 0:02:54.6]} 11... Qe7 {[%clk 0:02:47.1]} 12. f4 {[%clk 0:02:54.3]} 12...
a6 {[%clk 0:02:32.2]} 13. Rc1 {[%clk 0:02:50.7]} 13... c5 {[%clk 0:02:28]} 14.
Bf5 {[%clk 0:02:50.6]} 14... Rfe8 {[%clk 0:02:06.2]} 15. Ndf3 {[%clk 0:02:48.6]}
15... Bxe5 {[%clk 0:01:35.6]} 16. dxe5 {[%clk 0:02:34.3]} 16... Ne4 {[%clk
0:01:32.4]} 17. Bxe4 {[%clk 0:02:34.7]} 17... dxe4 {[%clk 0:01:32.5]} 18. Nd2
{[%clk 0:02:35.6]} 18... Red8 {[%clk 0:01:27.8]} 19. Qc2 {[%clk 0:02:30.9]}
19... f6 {[%clk 0:01:20.1]} 20. Nc4 {[%clk 0:02:15.8]} 20... fxe5 {[%clk
0:00:54.7]} 21. fxe5 {[%clk 0:02:15.6]} 21... Bd5 {[%clk 0:00:47.1]} 22. Rf4
{[%clk 0:01:32.4]} 22... Qe6 {[%clk 0:00:44.9]} 23. Qc3 {[%clk 0:01:27]} 23...
Nf8 {[%clk 0:00:34.9]} 24. Nd6 {[%clk 0:01:25.9]} 24... Ng6 {[%clk 0:00:34.2]}
25. Rf2 {[%clk 0:01:25.7]} 25... Rf8 {[%clk 0:00:31.2]} 26. Qd2 {[%clk
0:01:22.8]} 26... Rxf2 {[%clk 0:00:30.5]} 27. Qxf2 {[%clk 0:01:23.7]} 27... Rf8
{[%clk 0:00:30.4]} 28. Qg3 {[%clk 0:01:23.8]} 28... Ne7 {[%clk 0:00:21.8]} 29.
Rd1 {[%clk 0:01:12.2]} 29... Nf5 {[%clk 0:00:20.3]} 30. Qh3 {[%clk 0:01:11.1]}
30... Nxd6 {[%clk 0:00:18.7]} 31. Qxe6+ {[%clk 0:01:09.9]} 31... Bxe6 {[%clk
0:00:18.9]} 32. Rxd6 {[%clk 0:01:09.9]} 32... Bg4 {[%clk 0:00:15.1]} 33. e6
{[%clk 0:01:07.9]} 33... Re8 {[%clk 0:00:13.8]} 34. Rd7 {[%clk 0:01:07.7]} 34...
Bxe6 {[%clk 0:00:10.1]} 35. Rxg7+ {[%clk 0:01:08]} 35... Kf8 {[%clk 0:00:10.7]}
36. Rxh7 {[%clk 0:01:08.6]} 36... Bf7 {[%clk 0:00:10.9]} 37. Rh8+ {[%clk
0:01:08.4]} 37... Ke7 {[%clk 0:00:11.2]} 38. Rxe8+ {[%clk 0:01:06.9]} 38... Bxe8
{[%clk 0:00:12.1]} 39. g4 {[%clk 0:01:07.1]} 39... a5 {[%clk 0:00:11.6]} 40. Kf2
{[%clk 0:01:03.2]} 40... Bf7 {[%clk 0:00:12]} 41. Be5 {[%clk 0:01:02.9]} 41...
b5 {[%clk 0:00:11.2]} 42. h4 {[%clk 0:00:55.9]} 42... a4 {[%clk 0:00:11.1]} 43.
bxa4 {[%clk 0:00:56.4]} 43... b4 {[%clk 0:00:09.2]} 44. a5 {[%clk 0:00:46.9]}
44... Bxa2 {[%clk 0:00:09]} 45. a6 {[%clk 0:00:47.4]} 45... Bd5 {[%clk
0:00:09.7]} 46. h5 {[%clk 0:00:47.4]} 46... Kf7 {[%clk 0:00:09.9]} 47. g5 {[%clk
0:00:45.9]} 47... c4 {[%clk 0:00:08.5]} 48. g6+ {[%clk 0:00:44.6]} 48... Ke6
{[%clk 0:00:06]} 49. h6 {[%clk 0:00:44.8]} 49... Kf5 {[%clk 0:00:03.3]} 50. h7
{[%clk 0:00:44.6]} 1-0